[Event "-chT Youth Countries 2019"]
[Site "Wuerzburg"]
[Date "2019.10.05"]
[Round "6.8"]
[White "Roncea, Andrea-Alexandra"]
[Black "Bako, Evelin"]
[Result "1-0"]
[ECO "B40"]
[WhiteElo "1590"]
[BlackElo "1209"]
[Annotator "NA"]
[PlyCount "109"]
[EventDate "2019.10.02"]
[EventType "team-tourn"]
[EventRounds "7"]
[EventCountry "GER"]
[SourceTitle "playchess.com"]
[Source "ChessBase"]
[SourceQuality "1"]
[WhiteTeam "Niedersachsen"]
[BlackTeam "Württemberg"]
[TimeControl "40/5400+30:1800+30"]

1. e4 {[%emt 0:00:00]} c5 {[%emt 0:00:00]} 2. Nf3 {[%emt 0:00:00]} e6 {[%emt 0:00:01]} 3. c3 {[%emt 0:00:00]} d5 {[%emt 0:01:04]} 4. e5 {[%emt 0:00:39]} Nc6 {[%emt 0:01:37]} 5. d4 {[%emt 0:00:27]} Qb6 {[%emt 0:03:14]} 6. a3 {[%emt 0:00:56]} cxd4 {[%emt 0:02:21]} 7. cxd4 {[%emt 0:00:25]} Nge7 {[%emt 0:01:50]} 8. b4 {[%emt 0:00:56]} Nf5 {[%emt 0:02:22]} 9. Be3 {[%emt 0:01:31]} Be7 {[%emt 0:01:19]} 10. Bd3 {[%emt 0:01:17]} O-O {[%emt 0:04:26]} 11. O-O {[%emt 0:00:59]} f6 {[%emt 0:04:32]} 12. Bxf5 {[%emt 0:05:12]} exf5 {[%emt 0:01:04]} 13. Nc3 {[%emt 0:02:26]} Rd8 {[%emt 0:10:37]} 14. Qb3 {[%emt 0:15:53]} Be6 {[%emt 0:01:44]} 15. exf6 {[%emt 0:04:27]} Bxf6 {[%emt 0:01:54]} 16. Na4 {[%emt 0:00:43]} Qc7 {[%emt 0:04:59]} 17. Nc5 {[%emt 0:03:42]} Bf7 {[%emt 0:03:29]} 18. Rac1 {[%emt 0:05:06]} f4 {[%emt 0:04:53]} 19. Bd2 {[%emt 0:01:49]} Bxd4 {[%emt 0:01:40]} 20. Nd3 {[%emt 0:02:11]} Bf6 {[%emt 0:09:13]} 21. Bxf4 {[%emt 0:06:42]} Qd7 {[%emt 0:02:10]} 22. Nc5 {[%emt 0:02:11]} Qc8 {[%emt 0:04:15]} 23. Rfd1 {[%emt 0:09:07]} Rb8 {[%emt 0:03:13]} 24. Bxb8 {[%emt 0:02:20]} Qxb8 {[%emt 0:01:31]} 25. Qc2 {[%emt 0:10:10]} d4 {[%emt 0:11:51]} 26. Nxb7 {[%emt 0:05:45]} Qxb7 {[%emt 0:02:08]} 27. Qxc6 {[%emt 0:00:37]} Qb8 {[%emt 0:01:48]} 28. Qc5 {[%emt 0:05:18]} d3 {[%emt 0:04:18]} 29. Qc7 {[%emt 0:02:27]} Qxc7 {[%emt 0:01:26]} 30. Rxc7 {[%emt 0:00:03]} Bb3 {[%emt 0:01:12]} 31. Rd2 {[%emt 0:01:04]} g5 {[%emt 0:03:37]} 32. Ne1 {[%emt 0:02:12]} Be5 {[%emt 0:01:48]} 33. Re7 {[%emt 0:03:36]} Bf6 {[%emt 0:00:55]} 34. Re3 {[%emt 0:01:19]} g4 {[%emt 0:01:30]} 35. Rdxd3 {[%emt 0:01:06]} Rc8 {[%emt 0:00:42]} 36. Rxb3 {[%emt 0:00:16]} Rc1 {[%emt 0:00:38]} 37. Kf1 {[%emt 0:00:15]} Bd4 {[%emt 0:00:26]} 38. Re4 {[%emt 0:00:27]} Bb6 {[%emt 0:00:47]} 39. Rxg4+ {[%emt 0:00:20]} Kf7 {[%emt 0:00:18]} 40. Ke2 {[%emt 0:00:50]} Rc8 {[%emt 0:01:22]} 41. Rf3+ {[%emt 0:31:53]} Ke6 {[%emt 0:31:21]} 42. Rg7 {[%emt 0:00:37]} Re8 {[%emt 0:00:00]} 43. Rxh7 {[%emt 0:00:00]} Kd5+ {[%emt 0:00:00]} 44. Kf1 {[%emt 0:00:00]} Rc8 {[%emt 0:00:00]} 45. Nd3 {[%emt 0:00:00]} Rd8 {[%emt 0:00:00]} 46. Nc5 {[%emt 0:00:00]} Kc4 {[%emt 0:00:00]} 47. Rh4+ {[%emt 0:00:00]} Kb5 {[%emt 0:00:00]} 48. a4+ {[%emt 0:00:00]} Kc6 {[%emt 0:00:00]} 49. Rh6+ {[%emt 0:00:00]} Rd6 {[%emt 0:00:00]} 50. Rxd6+ {[%emt 0:00:00]} Kxd6 {[%emt 0:00:00]} 51. Rf6+ {[%emt 0:00:00]} Ke7 {[%emt 0:00:00]} 52. Rxb6 {[%emt 0:00:00]} axb6 {[%emt 0:00:00]} 53. h4 {[%emt 0:00:00]} bxc5 {[%emt 0:00:00]} 54. bxc5 {[%emt 0:00:00]} Kd7 {[%emt 0:00:00]} 55. h5 {[%emt 0:00:00] normal} 1-0

[Event "-chT Youth Countries 2019"]
[Site "Wuerzburg"]
[Date "2019.10.05"]
[Round "6.8"]
[White "von Beckh, Frieda"]
[Black "Heinze, Sofie"]
[Result "0-1"]
[ECO "C44"]
[WhiteElo "1541"]
[BlackElo "1207"]
[Annotator "NA"]
[PlyCount "86"]
[EventDate "2019.10.02"]
[EventType "team-tourn"]
[EventRounds "7"]
[EventCountry "GER"]
[SourceTitle "playchess.com"]
[Source "ChessBase"]
[SourceQuality "1"]
[WhiteTeam "Hessen"]
[BlackTeam "Brandenburg/Berlin"]
[TimeControl "40/5400+30:1800+30"]

1. e4 {[%emt 0:00:00]} e5 {[%emt 0:00:00]} 2. Nf3 {[%emt 0:00:00]} Nc6 {[%emt 0:00:00]} 3. d4 {[%emt 0:00:00]} d5 {[%emt 0:11:42]} 4. exd5 {[%emt 0:04:26]} Qxd5 {[%emt 0:00:22]} 5. Nc3 {[%emt 0:00:10]} Qd8 {[%emt 0:00:23]} 6. d5 {[%emt 0:03:39]} Nb4 {[%emt 0:06:29]} 7. a3 {[%emt 0:01:33]} e4 {[%emt 0:02:49]} 8. Ng5 {[%emt 0:02:07]} h6 {[%emt 0:00:51]} 9. Ngxe4 {[%emt 0:00:24]} Na6 {[%emt 0:00:50]} 10. Bc4 {[%emt 0:01:07]} b6 {[%emt 0:01:53]} 11. Bb5+ {[%emt 0:00:58]} Bd7 {[%emt 0:14:13]} 12. Bxa6 {[%emt 0:01:25]} Bd6 {[%emt 0:00:55]} 13. Qe2 {[%emt 0:01:16]} Ne7 {[%emt 0:00:44]} 14. O-O {[%emt 0:00:54]} O-O {[%emt 0:00:37]} 15. Re1 {[%emt 0:00:25]} Re8 {[%emt 0:00:27]} 16. Be3 {[%emt 0:00:58]} Nf5 {[%emt 0:01:22]} 17. Qd2 {[%emt 0:02:46]} Qh4 {[%emt 0:01:41]} 18. Nxd6 {[%emt 0:00:57]} cxd6 {[%emt 0:00:50]} 19. Bf4 {[%emt 0:03:07]} Qg4 {[%emt 0:02:24]} 20. Ne4 {[%emt 0:05:35]} Nh4 {[%emt 0:03:00]} 21. Ng3 {[%emt 0:01:20]} Bf5 {[%emt 0:01:28]} 22. Be2 {[%emt 0:03:25]} Qg6 {[%emt 0:01:06]} 23. Bh5 {[%emt 0:01:58]} Qf6 {[%emt 0:00:54]} 24. Qb4 {[%emt 0:02:13]} Bxc2 {[%emt 0:02:09]} 25. Bxd6 {[%emt 0:03:37]} Qg5 {[%emt 0:03:35]} 26. Qc4 {[%emt 0:02:57]} Bf5 {[%emt 0:01:50]} 27. Bf4 {[%emt 0:01:38]} Qf6 {[%emt 0:00:41]} 28. d6 {[%emt 0:00:24]} g6 {[%emt 0:06:27]} 29. Nxf5 {[%emt 0:02:36]} Qxf5 {[%emt 0:02:55]} 30. Be2 {[%emt 0:03:19]} Re4 {[%emt 0:02:10]} 31. Qc6 {[%emt 0:05:02]} Rae8 {[%emt 0:02:10]} 32. d7 {[%emt 0:01:02]} Rd8 {[%emt 0:00:10]} 33. Bxh6 {[%emt 0:02:34]} Qe5 {[%emt 0:01:30]} 34. Rad1 {[%emt 0:02:04]} Rxe2 {[%emt 0:00:51]} 35. Rxe2 {[%emt 0:01:03]} Qxe2 {[%emt 0:00:21]} 36. Rc1 {[%emt 0:00:35]} Qg4 {[%emt 0:01:58]} 37. Re1 {[%emt 0:01:06]} Rxd7 {[%emt 0:02:01]} 38. h3 {[%emt 0:02:09]} Qd4 {[%emt 0:01:36]} 39. b4 {[%emt 0:03:15]} Rd6 {[%emt 0:02:15]} 40. Qa8+ {[%emt 0:02:01]} Rd8 {[%emt 0:00:58]} 41. Qxa7 {[%emt 0:31:22]} Qd5 {[%emt 0:30:21]} 42. f3 {[%emt 0:03:23]} Qa2 {[%emt 0:01:06]} 43. Kf1 {[%emt 0:01:38]} Qxg2# {[%emt 0:00:18] normal} 0-1

[Event "-chT Youth Countries 2019"]
[Site "Wuerzburg"]
[Date "2019.10.05"]
[Round "6.8"]
[White "Haug, Mara"]
[Black "Ruhmke, Rebecca"]
[Result "1-0"]
[ECO "B01"]
[WhiteElo "1508"]
[BlackElo "1404"]
[Annotator "NA"]
[PlyCount "82"]
[EventDate "2019.10.02"]
[EventType "team-tourn"]
[EventRounds "7"]
[EventCountry "GER"]
[SourceTitle "playchess.com"]
[Source "ChessBase"]
[SourceQuality "1"]
[WhiteTeam "Baden 2"]
[BlackTeam "Hamburg/Schleswig-Holstein"]
[TimeControl "40/5400+30:1800+30"]

1. e4 {[%emt 0:00:00]} d5 {[%emt 0:00:00]} 2. exd5 {[%emt 0:00:00]} Nf6 {[%emt 0:00:00]} 3. Nf3 {[%emt 0:00:00]} Nxd5 {[%emt 0:00:08]} 4. d4 {[%emt 0:00:00]} Bf5 {[%emt 0:09:21]} 5. Be2 {[%emt 0:04:05]} Nc6 {[%emt 0:06:00]} 6. c4 {[%emt 0:02:09]} Ndb4 {[%emt 0:02:46]} 7. Na3 {[%emt 0:02:00]} e6 {[%emt 0:01:16]} 8. O-O {[%emt 0:04:48]} Be7 {[%emt 0:02:56]} 9. b3 {[%emt 0:08:33]} Bf6 {[%emt 0:02:37]} 10. Bb2 {[%emt 0:02:12]} O-O {[%emt 0:05:30]} 11. Qd2 {[%emt 0:05:57]} Qd6 {[%emt 0:07:13]} 12. Rfd1 {[%emt 0:10:06]} Rad8 {[%emt 0:02:25]} 13. Bc3 {[%emt 0:04:30]} Rd7 {[%emt 0:02:48]} 14. c5 {[%emt 0:01:33]} Qe7 {[%emt 0:01:06]} 15. Bxb4 {[%emt 0:01:24]} a6 {[%emt 0:05:45]} 16. Bc3 {[%emt 0:03:36]} b6 {[%emt 0:08:02]} 17. Qb2 {[%emt 0:03:07]} b5 {[%emt 0:00:51]} 18. Nc2 {[%emt 0:02:49]} Be4 {[%emt 0:02:05]} 19. a4 {[%emt 0:04:39]} Rb8 {[%emt 0:01:24]} 20. axb5 {[%emt 0:02:05]} axb5 {[%emt 0:00:30]} 21. Nb4 {[%emt 0:02:06]} Nxb4 {[%emt 0:00:29]} 22. Bxb4 {[%emt 0:02:09]} c6 {[%emt 0:00:15]} 23. Qd2 {[%emt 0:05:59]} Bd5 {[%emt 0:00:24]} 24. Ra3 {[%emt 0:02:35]} Rbb7 {[%emt 0:05:02]} 25. Ne5 {[%emt 0:03:32]} Bxe5 {[%emt 0:03:38]} 26. dxe5 {[%emt 0:00:08]} g6 {[%emt 0:03:46]} 27. Qe3 {[%emt 0:04:46]} Ra7 {[%emt 0:03:37]} 28. h3 {[%emt 0:01:32]} Rxa3 {[%emt 0:00:44]} 29. Bxa3 {[%emt 0:00:06]} Ra7 {[%emt 0:00:08]} 30. Ra1 {[%emt 0:00:40]} Ra6 {[%emt 0:01:22]} 31. Bb2 {[%emt 0:01:10]} Rxa1+ {[%emt 0:05:56]} 32. Bxa1 {[%emt 0:00:10]} Qa7 {[%emt 0:01:11]} 33. Bd4 {[%emt 0:05:20]} Qa3 {[%emt 0:02:36]} 34. Bd1 {[%emt 0:00:50]} Qb4 {[%emt 0:04:15]} 35. Qc3 {[%emt 0:01:27]} Qa3 {[%emt 0:05:22]} 36. Kh2 {[%emt 0:01:22]} Qa8 {[%emt 0:04:48]} 37. Qa1 {[%emt 0:01:20]} Qd8 {[%emt 0:00:53]} 38. Be3 {[%emt 0:01:58]} Kg7 {[%emt 0:00:34]} 39. Qc1 {[%emt 0:01:30]} Qh4 {[%emt 0:01:00]} 40. Qd2 {[%emt 0:02:46]} Qe4 {[%emt 0:00:28]} 41. f3 {[%emt 0:32:31]} Qh4 {[%emt 0:30:45] normal} 1-0

[Event "-chT Youth Countries 2019"]
[Site "Wuerzburg"]
[Date "2019.10.05"]
[Round "6.8"]
[White "Bakó, Isabella"]
[Black "Ulrich, Helena Irene"]
[Result "0-1"]
[ECO "B34"]
[WhiteElo "1266"]
[BlackElo "1355"]
[Annotator "NA"]
[PlyCount "92"]
[EventDate "2019.10.02"]
[EventType "team-tourn"]
[EventRounds "7"]
[EventCountry "GER"]
[SourceTitle "playchess.com"]
[Source "ChessBase"]
[SourceQuality "1"]
[WhiteTeam "Team Süd"]
[BlackTeam "Thüringen"]
[TimeControl "40/5400+30:1800+30"]

1. e4 {[%emt 0:00:00]} c5 {[%emt 0:00:00]} 2. Nf3 {[%emt 0:00:00]} Nc6 {[%emt 0:00:00]} 3. d4 {[%emt 0:00:08]} cxd4 {[%emt 0:00:00]} 4. Nxd4 {[%emt 0:00:24]} Nf6 {[%emt 0:00:00]} 5. Nc3 {[%emt 0:00:31]} e5 {[%emt 0:00:06]} 6. Nf5 {[%emt 0:00:21]} d6 {[%emt 0:03:43]} 7. Ne3 {[%emt 0:01:41]} Be6 {[%emt 0:02:01]} 8. Bc4 {[%emt 0:02:06]} Bxc4 {[%emt 0:08:08]} 9. Nxc4 {[%emt 0:00:17]} Be7 {[%emt 0:02:13]} 10. Be3 {[%emt 0:03:09]} O-O {[%emt 0:02:28]} 11. O-O {[%emt 0:01:22]} a6 {[%emt 0:03:27]} 12. Nb6 {[%emt 0:02:18]} Rb8 {[%emt 0:01:42]} 13. Qe2 {[%emt 0:03:51]} Nd4 {[%emt 0:02:04]} 14. Bxd4 {[%emt 0:01:12]} exd4 {[%emt 0:00:01]} 15. Nca4 {[%emt 0:00:56]} Nd7 {[%emt 0:01:33]} 16. Nxd7 {[%emt 0:00:42]} Qxd7 {[%emt 0:00:02]} 17. Nb6 {[%emt 0:00:54]} Qc6 {[%emt 0:01:13]} 18. Nd5 {[%emt 0:01:06]} Rfe8 {[%emt 0:01:32]} 19. Rad1 {[%emt 0:01:04]} Rbc8 {[%emt 0:07:16]} 20. Rd2 {[%emt 0:01:43]} Bg5 {[%emt 0:02:13]} 21. f4 {[%emt 0:02:54]} Bd8 {[%emt 0:01:31]} 22. f5 {[%emt 0:06:29]} Bg5 {[%emt 0:03:07]} 23. Rxd4 {[%emt 0:01:19]} Qxc2 {[%emt 0:01:28]} 24. Rf2 {[%emt 0:03:03]} Qxe2 {[%emt 0:06:54]} 25. Rxe2 {[%emt 0:00:27]} Re5 {[%emt 0:02:28]} 26. Nb6 {[%emt 0:01:44]} Rce8 {[%emt 0:01:29]} 27. Nc4 {[%emt 0:01:25]} R5e7 {[%emt 0:02:46]} 28. Nxd6 {[%emt 0:00:19]} Rd8 {[%emt 0:02:22]} 29. Rd5 {[%emt 0:00:58]} Bf4 {[%emt 0:00:50]} 30. e5 {[%emt 0:03:45]} f6 {[%emt 0:05:21]} 31. g3 {[%emt 0:03:23]} Bxe5 {[%emt 0:00:35]} 32. Red2 {[%emt 0:00:27]} Red7 {[%emt 0:01:11]} 33. b3 {[%emt 0:08:48]} Rxd6 {[%emt 0:00:14]} 34. Rxd6 {[%emt 0:01:15]} Rxd6 {[%emt 0:00:02]} 35. Rxd6 {[%emt 0:00:18]} Bxd6 {[%emt 0:00:02]} 36. Kf2 {[%emt 0:00:33]} Kf7 {[%emt 0:00:22]} 37. Ke3 {[%emt 0:00:32]} Ke7 {[%emt 0:02:04]} 38. Kd4 {[%emt 0:00:47]} Kd7 {[%emt 0:00:36]} 39. Kd5 {[%emt 0:04:03]} b6 {[%emt 0:00:20]} 40. a4 {[%emt 0:01:42]} h5 {[%emt 0:01:46]} 41. Kc4 {[%emt 0:30:49]} Kc6 {[%emt 0:30:45]} 42. b4 {[%emt 0:01:01]} b5+ {[%emt 0:00:16]} 43. Kb3 {[%emt 0:01:19]} bxa4+ {[%emt 0:01:28]} 44. Kxa4 {[%emt 0:00:13]} Kb6 {[%emt 0:00:01]} 45. Kb3 {[%emt 0:02:05]} Kb5 {[%emt 0:00:06]} 46. Kc3 {[%emt 0:00:14]} Bxb4+ {[%emt 0:00:22] normal} 0-1

[Event "-chT Youth Countries 2019"]
[Site "Wuerzburg"]
[Date "2019.10.06"]
[Round "7.1"]
[White "Roseneck, Jonas"]
[Black "Lagunow, Raphael"]
[Result "1-0"]
[ECO "B07"]
[WhiteElo "2402"]
[BlackElo "2438"]
[Annotator "ChessBase"]
[PlyCount "57"]
[EventDate "2019.10.02"]
[EventType "team-tourn"]
[EventRounds "7"]
[EventCountry "GER"]
[SourceTitle "playchess.com"]
[Source "ChessBase"]
[SourceQuality "1"]
[WhiteTeam "Sachsen-Anhalt"]
[BlackTeam "Berlin"]
[TimeControl "40/5400+30:1800+30"]

1. e4 {[%emt 0:00:00]} d6 {[%emt 0:00:00]} 2. d4 {[%emt 0:00:00]} Nf6 {[%emt 0:00:00]} 3. Nc3 {[%emt 0:00:00]} g6 {[%emt 0:00:00]} 4. Bg5 {[%emt 0:00:00]} Bg7 {[%emt 0:00:15]} 5. Qd2 {[%emt 0:00:00]} h6 {[%emt 0:04:34]} 6. Bf4 {[%emt 0:03:53]} c6 {[%emt 0:05:43]} 7. Be2 {[%emt 0:16:43]} b5 {[%emt 0:43:56]} 8. a3 {[%emt 0:01:09]} Nfd7 {[%emt 0:06:35]} 9. Nf3 {[%emt 0:05:44]} e5 {[%emt 0:04:59]} 10. dxe5 {[%emt 0:09:26]} dxe5 {[%emt 0:00:13]} 11. Be3 {[%emt 0:00:10]} Qe7 {[%emt 0:06:01]} 12. Nxb5 {[%emt 0:10:40]} cxb5 {[%emt 0:04:46]} 13. Qd5 {[%emt 0:00:03]} Nb6 {[%emt 0:04:21]} 14. Bxb6 {[%emt 0:00:41]} Bb7 {[%emt 0:00:05]} 15. Qxb5+ {[%emt 0:03:50]} Bc6 {[%emt 0:01:41]} 16. Bc5 {[%emt 0:00:03]} Qe6 {[%emt 0:00:52]} 17. Qa5 {[%emt 0:13:29]} Bxe4 {[%emt 0:02:22]} 18. Rd1 {[%emt 0:07:07]} Nc6 {[%emt 0:00:20]} 19. Qa4 {[%emt 0:00:08]} Bd5 {[%emt 0:02:39]} 20. c4 {[%emt 0:04:56]} Be4 {[%emt 0:00:31]} 21. Rd6 {[%emt 0:00:02]} Qc8 {[%emt 0:00:05]} 22. Nd2 {[%emt 0:00:07]} Bxg2 {[%emt 0:00:04]} 23. Rg1 {[%emt 0:00:04]} Bf8 {[%emt 0:00:21]} 24. Rxg2 {[%emt 0:00:44]} Bxd6 {[%emt 0:00:06]} 25. Bxd6 {[%emt 0:00:04]} Qd7 {[%emt 0:02:50]} 26. Ne4 {[%emt 0:05:59]} O-O-O {[%emt 0:02:21]} 27. c5 {[%emt 0:00:29]} Kb7 {[%emt 0:00:06]} 28. Ba6+ {[%emt 0:00:28]} Ka8 {[%emt 0:00:04]} 29. Nf6 {[%emt 0:00:02] normal} 1-0

[Event "-chT Youth Countries 2019"]
[Site "Wuerzburg"]
[Date "2019.10.06"]
[Round "7.1"]
[White "Nothnagel, Marian Can"]
[Black "Wendler, David"]
[Result "0-1"]
[ECO "B18"]
[WhiteElo "2376"]
[BlackElo "2107"]
[Annotator "ChessBase"]
[PlyCount "146"]
[EventDate "2019.10.02"]
[EventType "team-tourn"]
[EventRounds "7"]
[EventCountry "GER"]
[SourceTitle "playchess.com"]
[Source "ChessBase"]
[SourceQuality "1"]
[WhiteTeam "Hessen"]
[BlackTeam "Team Süd"]
[TimeControl "40/5400+30:1800+30"]

1. e4 c6 2. d4 d5 3. Nd2 dxe4 4. Nxe4 Bf5 5. Ng3 Bg6 6. N1e2 e6 7. Nf4 Bd6 8. c3 Nf6 9. h4 Bxf4 10. Bxf4 h6 11. Qb3 Qe7 12. Be2 O-O 13. O-O a5 14. c4 a4 15. Qc3 Nbd7 16. h5 Bh7 17. Rad1 Rfc8 18. Bf3 b5 19. cxb5 Nd5 20. Bxd5 cxd5 21. Qe1 Rc2 22. Rd2 Rac8 23. b3 axb3 24. axb3 R2c3 25. Qd1 Qb4 26. Qg4 Kh8 27. Ra1 Qxb5 28. Ra7 Rxb3 29. Qh4 Rb1+ 30. Kh2 Re8 31. Rda2 Bg8 32. R2a5 Qb6 33. Rxd7 Qxa5 34. Qg4 Re1 35. Ne2 Rxe2 36. Qxe2 Qa4 37. Rxf7 Bxf7 38. Be5 Bg8 39. Qe3 Qd7 40. Qxh6+ Bh7 41. Qf4 Kg8 42. h6 Qf7 43. Qh4 gxh6 44. Qxh6 Qg6 45. Qh4 Kf7 46. f3 Rg8 47. Qf4+ Ke8 48. g4 Rf8 49. Qe3 Qd3 50. Qh6 Qe2+ 51. Kg1 Qd1+ 52. Kh2 Qc2+ 53. Kg3 Qg6 54. Qc1 Kf7 55. Qc7+ Kg8 56. Qe7 Re8 57. Qc7 Qh6 58. Bf4 Qg7 59. Qc3 Bb1 60. Be5 Qg6 61. Qc1 Rf8 62. Bd6 Re8 63. Be5 Bd3 64. Qh1 Rf8 65. Qd1 Bc2 66. Qd2 Rc8 67. Qh2 Kf7 68. Qd2 Rf8 69. Qc3 Bd3 70. Qd2 Bc4 71. Qb2 Qh6 72. Kg2 Kg8 73. Qc2 Ra8 {normal} 0-1

[Event "-chT Youth Countries 2019"]
[Site "Wuerzburg"]
[Date "2019.10.06"]
[Round "7.1"]
[White "Färber, David"]
[Black "Hoffmann, Sebastian"]
[Result "1/2-1/2"]
[ECO "B01"]
[WhiteElo "2332"]
[BlackElo "2187"]
[Annotator "ChessBase"]
[PlyCount "171"]
[EventDate "2019.10.02"]
[EventType "team-tourn"]
[EventRounds "7"]
[EventCountry "GER"]
[SourceTitle "playchess.com"]
[Source "ChessBase"]
[SourceQuality "1"]
[WhiteTeam "Baden 2"]
[BlackTeam "Bayern 2"]
[TimeControl "40/5400+30:1800+30"]

1. e4 {[%emt 0:00:00]} d5 {[%emt 0:00:00]} 2. exd5 {[%emt 0:00:00]} Qxd5 {[%emt 0:00:00]} 3. Nf3 Bg4 {[%emt 0:00:09]} 4. Nc3 {[%emt 0:00:04]} Qd8 {[%emt 0:00:18]} 5. Bc4 {[%emt 0:06:02]} e6 {[%emt 0:00:30]} 6. d3 {[%emt 0:03:37]} Nf6 {[%emt 0:00:32]} 7. h3 {[%emt 0:00:17]} Bxf3 {[%emt 0:00:13]} 8. Qxf3 {[%emt 0:00:08]} c6 {[%emt 0:00:04]} 9. O-O {[%emt 0:20:12]} Bd6 {[%emt 0:03:47]} 10. Bg5 {[%emt 0:03:12]} Nbd7 {[%emt 0:01:20]} 11. Qe2 {[%emt 0:01:13]} O-O {[%emt 0:01:40]} 12. Rad1 {[%emt 0:03:06]} h6 {[%emt 0:05:07]} 13. Bc1 {[%emt 0:02:01]} Nb6 {[%emt 0:01:14]} 14. Bb3 {[%emt 0:00:30]} a5 {[%emt 0:00:12]} 15. a3 {[%emt 0:00:39]} Qc7 {[%emt 0:01:37]} 16. g3 {[%emt 0:02:52]} Nbd5 {[%emt 0:09:47]} 17. Ne4 {[%emt 0:03:01]} Be7 {[%emt 0:02:14]} 18. c3 {[%emt 0:04:11]} Rfe8 {[%emt 0:17:44]} 19. Bc2 {[%emt 0:07:58]} e5 {[%emt 0:02:00]} 20. Rfe1 {[%emt 0:03:19]} Nxe4 {[%emt 0:01:39]} 21. dxe4 {[%emt 0:04:03]} Nf6 {[%emt 0:02:36]} 22. Bb3 {[%emt 0:00:55]} Rad8 {[%emt 0:02:34]} 23. Qc4 {[%emt 0:01:25]} Bf8 {[%emt 0:01:06]} 24. a4 {[%emt 0:01:01]} Re7 {[%emt 0:04:20]} 25. Rxd8 {[%emt 0:00:40]} Qxd8 {[%emt 0:00:02]} 26. Rd1 {[%emt 0:00:10]} Qc7 {[%emt 0:01:54]} 27. Kg2 {[%emt 0:03:04]} Rd7 {[%emt 0:01:26]} 28. Be3 {[%emt 0:01:08]} Rxd1 29. Bxd1 {[%emt 0:00:08]} Qd7 {[%emt 0:05:38]} 30. Bc2 {[%emt 0:03:05]} Bd6 {[%emt 0:03:44]} 31. Qb3 {[%emt 0:03:00]} Ne8 {[%emt 0:09:41]} 32. Qb6 {[%emt 0:02:00]} Qc7 {[%emt 0:01:38]} 33. Qa7 {[%emt 0:03:08]} c5 {[%emt 0:03:11]} 34. Qa8 {[%emt 0:02:23]} Kf8 {[%emt 0:01:34]} 35. b3 {[%emt 0:03:41]} b6 {[%emt 0:01:19]} 36. Qa6 {[%emt 0:10:36]} Nf6 {[%emt 0:02:48]} 37. Qe2 {[%emt 0:01:43]} Kg8 {[%emt 0:02:52]} 38. Bd3 {[%emt 0:01:01]} Kf8 {[%emt 0:01:24]} 39. Qf3 {[%emt 0:01:09]} Qe7 {[%emt 0:01:45]} 40. Bc4 {[%emt 0:02:01]} Qb7 {[%emt 0:01:15]} 41. Bd3 {[%emt 0:05:39]} Qe7 {[%emt 0:00:16]} 42. Qd1 {[%emt 0:00:23]} Qc7 {[%emt 0:01:06]} 43. f3 {[%emt 0:02:23]} Ke7 {[%emt 0:01:53]} 44. Bc4 {[%emt 0:00:07]} Qd7 {[%emt 0:03:37]} 45. Bb5 {[%emt 0:00:14]} Qc7 {[%emt 0:00:56]} 46. Kf2 {[%emt 0:00:23]} Qc8 {[%emt 0:01:54]} 47. Kg2 {[%emt 0:02:03]} Qc7 {[%emt 0:00:53]} 48. Bf1 {[%emt 0:00:24]} Qc6 {[%emt 0:06:32]} 49. Qd3 {[%emt 0:01:43]} Qb7 {[%emt 0:01:05]} 50. Kf2 {[%emt 0:00:35]} Qc6 {[%emt 0:00:48]} 51. Qa6 {[%emt 0:00:10]} Qc7 {[%emt 0:00:24]} 52. Bb5 {[%emt 0:03:51]} Qb8 {[%emt 0:00:36]} 53. Ke2 {[%emt 0:02:12]} Nh5 {[%emt 0:01:14]} 54. Bf2 {[%emt 0:01:00]} Nf6 {[%emt 0:00:07]} 55. Kd3 {[%emt 0:01:12]} Bc7 {[%emt 0:01:36]} 56. Ke2 {[%emt 0:00:53]} Ne8 {[%emt 0:00:57]} 57. Bxe8 {[%emt 0:01:04]} Qxe8 {[%emt 0:01:05]} 58. Qd3 {[%emt 0:04:00]} Qd7 {[%emt 0:00:20]} 59. g4 {[%emt 0:00:13]} Qxd3+ {[%emt 0:00:43]} 60. Kxd3 {[%emt 0:00:02]} Kd6 {[%emt 0:00:27]} 61. Kc4 {[%emt 0:00:13]} Kc6 {[%emt 0:00:09]} 62. h4 {[%emt 0:05:27]} g5 {[%emt 0:01:11]} 63. b4 {[%emt 0:00:43]} cxb4 {[%emt 0:02:30]} 64. cxb4 {[%emt 0:00:06]} axb4 {[%emt 0:00:13]} 65. Kxb4 {[%emt 0:00:06]} Bd8 {[%emt 0:00:25]} 66. h5 {[%emt 0:00:33]} Be7+ {[%emt 0:04:07]} 67. Kc4 {[%emt 0:00:05]} Bf8 {[%emt 0:01:45]} 68. Be1 {[%emt 0:00:13]} Be7 {[%emt 0:00:58]} 69. Bc3 {[%emt 0:00:06]} Bd6 {[%emt 0:01:42]} 70. Bb2 {[%emt 0:00:05]} Bc7 {[%emt 0:01:30]} 71. Ba1 {[%emt 0:01:13]} Bd6 {[%emt 0:00:35]} 72. Bc3 {[%emt 0:00:04]} Bc7 {[%emt 0:00:29]} 73. Bd2 {[%emt 0:00:12]} Bd6 {[%emt 0:01:33]} 74. Be3 {[%emt 0:00:11]} Be7 {[%emt 0:00:31]} 75. Bd2 {[%emt 0:02:00]} Bd6 {[%emt 0:01:03]} 76. Bc1 {[%emt 0:00:13]} Be7 {[%emt 0:01:06]} 77. Bb2 {[%emt 0:00:36]} Bd6 {[%emt 0:00:15]} 78. Ba1 {[%emt 0:00:47]} Bc7 {[%emt 0:00:30]} 79. Bc3 {[%emt 0:00:05]} Bd6 {[%emt 0:01:03]} 80. Bb2 {[%emt 0:00:00]} Bc7 {[%emt 0:00:39]} 81. Ba3 {[%emt 0:00:00]} Bd6 {[%emt 0:00:06]} 82. Bb4 {[%emt 0:00:00]} Bxb4 {[%emt 0:00:35]} 83. Kxb4 {[%emt 0:00:00]} Kc7 {[%emt 0:00:46]} 84. Kb3 {[%emt 0:00:00]} Kb7 {[%emt 0:00:17]} 85. Kc3 {[%emt 0:00:00] normal} Kc7 {[%emt 0:00:21]} 86. Kb4 {normal} 1/2-1/2